[Event "Early-Titled-Tuesday-Blitz-October-17-2023"]
[Site "Chess.com"]
[Date "2023.10.17"]
[Round "5"]
[White "ChainedDowntohell"]
[Black "zimmm36"]
[Result "0-1"]
[WhiteElo "2463"]
[BlackElo "2723"]
[TimeControl "180+1"]
[EndTime "8:56:52 PDT"]
[Termination "zimmm36 won on time"]

1. d4 {[%clk 0:03:00.9]} 1... Nf6 {[%clk 0:02:59.8]} 2. c4 {[%clk 0:03:01]} 2...
e6 {[%clk 0:02:58.5]} 3. Nc3 {[%clk 0:03:01]} 3... Bb4 {[%clk 0:02:59]} 4. e3
{[%clk 0:03:01.3]} 4... O-O {[%clk 0:02:58.9]} 5. a3 {[%clk 0:03:01.3]} 5...
Bxc3+ {[%clk 0:02:58.1]} 6. bxc3 {[%clk 0:03:02.2]} 6... d6 {[%clk 0:02:57.6]}
7. Bd3 {[%clk 0:03:01.4]} 7... e5 {[%clk 0:02:57.7]} 8. Ne2 {[%clk 0:03:00.8]}
8... Re8 {[%clk 0:02:53.7]} 9. a4 {[%clk 0:02:54.6]} 9... e4 {[%clk 0:02:53.3]}
10. Bc2 {[%clk 0:02:54.4]} 10... Nc6 {[%clk 0:02:53.9]} 11. h3 {[%clk
0:02:51.4]} 11... Na5 {[%clk 0:02:54]} 12. d5 {[%clk 0:02:14.1]} 12... Nxc4
{[%clk 0:02:50.5]} 13. Qd4 {[%clk 0:02:13.9]} 13... Ne5 {[%clk 0:02:47.8]} 14.
c4 {[%clk 0:02:01.6]} 14... Bf5 {[%clk 0:02:45.7]} 15. Bb2 {[%clk 0:01:59.3]}
15... Bg6 {[%clk 0:02:44]} 16. Nf4 {[%clk 0:01:51.9]} 16... Nd3+ {[%clk
0:02:30.8]} 17. Bxd3 {[%clk 0:01:48.4]} 17... exd3 {[%clk 0:02:30.9]} 18. Nxg6
{[%clk 0:01:41.5]} 18... hxg6 {[%clk 0:02:31.8]} 19. O-O {[%clk 0:01:35.7]}
19... Qe7 {[%clk 0:02:26]} 20. Qxd3 {[%clk 0:01:30.9]} 20... Ne4 {[%clk
0:02:25.6]} 21. Rfe1 {[%clk 0:01:23.5]} 21... f6 {[%clk 0:02:25]} 22. a5 {[%clk
0:01:18.8]} 22... Nc5 {[%clk 0:02:24.2]} 23. Qxg6 {[%clk 0:01:13.5]} 23... Qe4
{[%clk 0:02:22.4]} 24. Qxe4 {[%clk 0:01:05.2]} 24... Rxe4 {[%clk 0:02:23.3]} 25.
Bd4 {[%clk 0:00:32.6]} 25... Nb3 {[%clk 0:02:23]} 26. Rab1 {[%clk 0:00:24.7]}
26... Nxa5 {[%clk 0:02:22.4]} 27. Rec1 {[%clk 0:00:24]} 27... b6 {[%clk
0:02:22.4]} 28. f3 {[%clk 0:00:22.5]} 28... Ree8 {[%clk 0:02:21.7]} 29. e4
{[%clk 0:00:21.1]} 29... Nb7 {[%clk 0:02:21.5]} 30. g4 {[%clk 0:00:19.9]} 30...
a5 {[%clk 0:02:21.7]} 31. Kg2 {[%clk 0:00:19.3]} 31... Kf7 {[%clk 0:02:20.8]}
32. Kg3 {[%clk 0:00:19.7]} 32... g5 {[%clk 0:02:20.2]} 33. h4 {[%clk 0:00:19.4]}
33... gxh4+ {[%clk 0:02:20.3]} 34. Kxh4 {[%clk 0:00:20.3]} 34... Rh8+ {[%clk
0:02:20.5]} 35. Kg3 {[%clk 0:00:21]} 35... a4 {[%clk 0:02:20.9]} 36. Rh1 {[%clk
0:00:20.7]} 36... Na5 {[%clk 0:02:19.3]} 37. Bc3 {[%clk 0:00:19]} 37... Nxc4
{[%clk 0:02:18.8]} 38. g5 {[%clk 0:00:19.2]} 38... Ne5 {[%clk 0:02:09.6]} 39. f4
{[%clk 0:00:15.6]} 39... Nd7 {[%clk 0:02:07.2]} 40. Kg4 {[%clk 0:00:13.3]} 40...
a3 {[%clk 0:01:59]} 41. gxf6 {[%clk 0:00:07.8]} 41... Nxf6+ {[%clk 0:01:55.7]}
42. Kf5 {[%clk 0:00:08.2]} 42... Nh5 {[%clk 0:01:53.1]} 43. Rhg1 {[%clk
0:00:03.4]} 43... Rh7 {[%clk 0:01:52.4]} 44. e5 {[%clk 0:00:03.4]} 44... Ng7+
{[%clk 0:01:48.5]} 45. Ke4 {[%clk 0:00:03]} 45... Ra4+ {[%clk 0:01:47.9]} 46.
Kd3 {[%clk 0:00:01.8]} 46... Rh3+ {[%clk 0:01:47.3]} 47. Kc2 {[%clk 0:00:02.5]}
47... Nf5 {[%clk 0:01:44.7]} 48. e6+ {[%clk 0:00:02.6]} 48... Ke7 {[%clk
0:01:44.9]} 49. Rbe1 {[%clk 0:00:02.9]} 49... Rc4 {[%clk 0:01:43.2]} 50. Rg5
{[%clk 0:00:01.5]} 50... Rcxc3+ {[%clk 0:01:43.2]} 51. Kd2 {[%clk 0:00:01.5]}
51... Rhd3+ {[%clk 0:01:42.4]} 52. Ke2 {[%clk 0:00:02.1]} 52... Re3+ {[%clk
0:01:43.3]} 53. Kf2 {[%clk 0:00:02.6]} 53... Rc2+ {[%clk 0:01:43.2]} 54. Kf1
{[%clk 0:00:01.8]} 54... Rxe1+ {[%clk 0:01:43.8]} 55. Kxe1 {[%clk 0:00:01.4]}
55... Ne3 {[%clk 0:01:42.2]} 0-1

[Event "Early-Titled-Tuesday-Blitz-October-17-2023"]
[Site "Chess.com"]
[Date "2023.10.17"]
[Round "5"]
[White "Me_ch_an"]
[Black "Emp3rador"]
[Result "0-1"]
[WhiteElo "2362"]
[BlackElo "2545"]
[TimeControl "180+1"]
[EndTime "8:56:53 PDT"]
[Termination "Emp3rador won by resignation"]

1. e4 {[%clk 0:02:56.9]} 1... e6 {[%clk 0:02:58.2]} 2. d4 {[%clk 0:02:56.7]}
2... d5 {[%clk 0:02:59.1]} 3. e5 {[%clk 0:02:57.1]} 3... c5 {[%clk 0:02:58.5]}
4. c3 {[%clk 0:02:57.7]} 4... Qb6 {[%clk 0:02:58.8]} 5. g3 {[%clk 0:02:57]} 5...
Bd7 {[%clk 0:02:54.1]} 6. Ne2 {[%clk 0:02:57.1]} 6... Bb5 {[%clk 0:02:49.5]} 7.
Be3 {[%clk 0:02:49.6]} 7... Nc6 {[%clk 0:02:45.5]} 8. b3 {[%clk 0:02:49.1]} 8...
Nh6 {[%clk 0:02:40.9]} 9. Bh3 {[%clk 0:02:38.5]} 9... Bxe2 {[%clk 0:02:19.9]}
10. Qxe2 {[%clk 0:02:37.5]} 10... cxd4 {[%clk 0:02:17]} 11. cxd4 {[%clk
0:02:35.2]} 11... Bb4+ {[%clk 0:02:05.1]} 12. Nd2 {[%clk 0:01:51.2]} 12... Nxd4
{[%clk 0:01:48.9]} 13. Bxd4 {[%clk 0:01:43.1]} 13... Qxd4 {[%clk 0:01:49.8]} 14.
Rd1 {[%clk 0:01:00.4]} 14... O-O {[%clk 0:01:45.9]} 15. O-O {[%clk 0:01:00.2]}
15... Rac8 {[%clk 0:01:41.8]} 16. Nf3 {[%clk 0:00:52.7]} 16... Qc5 {[%clk
0:01:29.8]} 17. Nd4 {[%clk 0:00:46.2]} 17... Bc3 {[%clk 0:01:27.7]} 18. Nxe6
{[%clk 0:00:33.3]} 18... fxe6 {[%clk 0:01:25.2]} 19. Bxe6+ {[%clk 0:00:33.3]}
19... Kh8 {[%clk 0:01:25.8]} 20. Bxc8 {[%clk 0:00:28.7]} 20... Rxc8 {[%clk
0:01:24.6]} 21. e6 {[%clk 0:00:23.9]} 21... Bf6 {[%clk 0:01:23.2]} 22. Qh5
{[%clk 0:00:20.5]} 22... d4 {[%clk 0:01:06.4]} 23. Qxc5 {[%clk 0:00:14.7]} 23...
Rxc5 {[%clk 0:01:07.3]} 24. Rfe1 {[%clk 0:00:14.7]} 24... Ng8 {[%clk 0:01:04.2]}
25. f4 {[%clk 0:00:10.9]} 25... Ne7 {[%clk 0:01:03.7]} 26. g4 {[%clk 0:00:11.1]}
26... h6 {[%clk 0:01:00.2]} 27. f5 {[%clk 0:00:10.2]} 27... Kg8 {[%clk
0:00:59.1]} 28. Re2 {[%clk 0:00:10.5]} 28... Kf8 {[%clk 0:00:58.4]} 29. Kg2
{[%clk 0:00:11]} 29... Nd5 {[%clk 0:00:56.4]} 30. Kg3 {[%clk 0:00:11.4]} 30...
Ke7 {[%clk 0:00:54.2]} 31. Rde1 {[%clk 0:00:08.9]} 31... Rc3+ {[%clk 0:00:54.4]}
32. Kf2 {[%clk 0:00:06.6]} 32... Bh4+ {[%clk 0:00:53.4]} 0-1

[Event "Early-Titled-Tuesday-Blitz-October-17-2023"]
[Site "Chess.com"]
[Date "2023.10.17"]
[Round "5"]
[White "Zhigalko_Sergei"]
[Black "Nuvas"]
[Result "1-0"]
[WhiteElo "2946"]
[BlackElo "2826"]
[TimeControl "180+1"]
[EndTime "8:56:55 PDT"]
[Termination "Zhigalko_Sergei won by resignation"]

1. e4 {[%clk 0:03:00.9]} 1... e5 {[%clk 0:03:00.3]} 2. Nf3 {[%clk 0:03:01.2]}
2... Nc6 {[%clk 0:03:00.7]} 3. Bc4 {[%clk 0:03:01.5]} 3... Nf6 {[%clk
0:03:00.7]} 4. d3 {[%clk 0:03:01.6]} 4... Bc5 {[%clk 0:03:00.6]} 5. O-O {[%clk
0:03:01.7]} 5... d6 {[%clk 0:03:00.6]} 6. c3 {[%clk 0:03:01]} 6... a5 {[%clk
0:03:00.5]} 7. Nbd2 {[%clk 0:03:00.9]} 7... Ba7 {[%clk 0:02:58.7]} 8. h3 {[%clk
0:02:59.9]} 8... O-O {[%clk 0:02:57]} 9. Re1 {[%clk 0:02:58.8]} 9... h6 {[%clk
0:02:54]} 10. Nf1 {[%clk 0:02:58.7]} 10... Be6 {[%clk 0:02:51.4]} 11. Bb5 {[%clk
0:02:58.7]} 11... Ne7 {[%clk 0:02:50.8]} 12. Ng3 {[%clk 0:02:57.6]} 12... Ng6
{[%clk 0:02:45.1]} 13. d4 {[%clk 0:02:57.2]} 13... c6 {[%clk 0:02:39]} 14. Bd3
{[%clk 0:02:57.1]} 14... Re8 {[%clk 0:02:02.1]} 15. Be3 {[%clk 0:02:57]} 15...
Qc7 {[%clk 0:01:53]} 16. Qc2 {[%clk 0:02:49.5]} 16... Rad8 {[%clk 0:01:46.5]}
17. dxe5 {[%clk 0:02:44.7]} 17... Bxe3 {[%clk 0:01:46.3]} 18. exf6 {[%clk
0:02:45.1]} 18... Ba7 {[%clk 0:01:46.7]} 19. Nh5 {[%clk 0:02:33]} 19... b5
{[%clk 0:01:29.4]} 20. Nxg7 {[%clk 0:01:28.5]} 20... Rf8 {[%clk 0:01:29.2]} 21.
e5 {[%clk 0:01:07.8]} 21... Nxe5 {[%clk 0:01:08.1]} 22. Rxe5 {[%clk 0:00:27.2]}
22... dxe5 {[%clk 0:01:04.3]} 23. Qc1 {[%clk 0:00:27.7]} 23... e4 {[%clk
0:00:38.8]} 24. Qxh6 {[%clk 0:00:24.9]} 24... Qg3 {[%clk 0:00:38.2]} 25. Bxe4
{[%clk 0:00:17.5]} 1-0

[Event "Early-Titled-Tuesday-Blitz-October-17-2023"]
[Site "Chess.com"]
[Date "2023.10.17"]
[Round "5"]
[White "pinguino120"]
[Black "Sofia_Blokhin"]
[Result "1-0"]
[WhiteElo "2208"]
[BlackElo "2276"]
[TimeControl "180+1"]
[EndTime "8:56:55 PDT"]
[Termination "pinguino120 won by resignation"]

1. e4 {[%clk 0:03:00.9]} 1... c5 {[%clk 0:02:59.5]} 2. Nf3 {[%clk 0:02:59.7]}
2... e6 {[%clk 0:02:59]} 3. c3 {[%clk 0:02:59.5]} 3... d5 {[%clk 0:02:55.9]} 4.
e5 {[%clk 0:02:59.8]} 4... d4 {[%clk 0:02:56.1]} 5. d3 {[%clk 0:02:59.3]} 5...
Nc6 {[%clk 0:02:55.3]} 6. g3 {[%clk 0:02:58.6]} 6... Nge7 {[%clk 0:02:53.2]} 7.
Bg2 {[%clk 0:02:58.6]} 7... Ng6 {[%clk 0:02:53.3]} 8. Qe2 {[%clk 0:02:58.4]}
8... Qc7 {[%clk 0:02:50.7]} 9. Na3 {[%clk 0:02:58.1]} 9... a6 {[%clk 0:02:48.4]}
10. Bf4 {[%clk 0:02:52.1]} 10... Nxf4 {[%clk 0:02:41.5]} 11. gxf4 {[%clk
0:02:51.7]} 11... Be7 {[%clk 0:02:39]} 12. O-O {[%clk 0:02:47.3]} 12... Bd7
{[%clk 0:02:36]} 13. cxd4 {[%clk 0:02:46.7]} 13... cxd4 {[%clk 0:02:30.6]} 14.
Nc2 {[%clk 0:02:46]} 14... Bc5 {[%clk 0:02:28.3]} 15. Rac1 {[%clk 0:02:45.6]}
15... Qb6 {[%clk 0:02:26.2]} 16. a3 {[%clk 0:02:08.7]} 16... a5 {[%clk
0:02:24.9]} 17. b4 {[%clk 0:01:56.9]} 17... axb4 {[%clk 0:02:23.2]} 18. axb4
{[%clk 0:01:56.8]} 18... Nxb4 {[%clk 0:02:19.8]} 19. Nxb4 {[%clk 0:01:56.7]}
19... Qxb4 {[%clk 0:02:11.7]} 20. Rb1 {[%clk 0:01:54.9]} 20... Qa5 {[%clk
0:02:05.9]} 21. Rxb7 {[%clk 0:01:52.3]} 21... Bc6 {[%clk 0:02:04.8]} 22. Rb2
{[%clk 0:01:34.3]} 22... O-O {[%clk 0:01:59.9]} 23. Ng5 {[%clk 0:01:27.8]} 23...
Bxg2 {[%clk 0:01:56.4]} 24. Kxg2 {[%clk 0:01:28.7]} 24... h6 {[%clk 0:01:56.2]}
25. Ne4 {[%clk 0:01:28.5]} 25... Bb4 {[%clk 0:01:52]} 26. Rfb1 {[%clk
0:01:25.8]} 26... Bc3 {[%clk 0:01:49.9]} 27. Rb5 {[%clk 0:01:25.1]} 27... Qa2
{[%clk 0:01:42.9]} 28. Qg4 {[%clk 0:01:20.3]} 28... Kh7 {[%clk 0:01:36.1]} 29.
f5 {[%clk 0:00:50.3]} 29... exf5 {[%clk 0:01:13.4]} 30. Qxf5+ {[%clk 0:00:49.4]}
30... Kh8 {[%clk 0:01:13.3]} 31. Rb7 {[%clk 0:00:45.8]} 31... Qd5 {[%clk
0:01:08.4]} 32. R1b5 {[%clk 0:00:30.3]} 32... Qa2 {[%clk 0:01:07.1]} 33. Nd6
{[%clk 0:00:26.5]} 33... Ra7 {[%clk 0:00:45.2]} 34. Nxf7+ {[%clk 0:00:25.6]}
34... Rxf7 {[%clk 0:00:41.2]} 35. Rb8+ {[%clk 0:00:24.5]} 1-0

[Event "Early-Titled-Tuesday-Blitz-October-17-2023"]
[Site "Chess.com"]
[Date "2023.10.17"]
[Round "5"]
[White "Air-Conditioner07"]
[Black "nelsi"]
[Result "0-1"]
[WhiteElo "2170"]
[BlackElo "2290"]
[TimeControl "180+1"]
[EndTime "8:56:56 PDT"]
[Termination "nelsi won by resignation"]

1. d4 {[%clk 0:03:00.9]} 1... Nf6 {[%clk 0:02:59.6]} 2. c4 {[%clk 0:02:59.9]}
2... g6 {[%clk 0:02:59.9]} 3. Nc3 {[%clk 0:03:00.5]} 3... Bg7 {[%clk 0:03:00.3]}
4. e4 {[%clk 0:03:00.6]} 4... d6 {[%clk 0:03:00.9]} 5. h3 {[%clk 0:03:01.1]}
5... O-O {[%clk 0:03:01.1]} 6. Be3 {[%clk 0:03:01.7]} 6... Nc6 {[%clk 0:03:01]}
7. d5 {[%clk 0:02:58]} 7... Nb8 {[%clk 0:02:55.4]} 8. g4 {[%clk 0:02:56]} 8...
c6 {[%clk 0:02:40.4]} 9. Bg2 {[%clk 0:02:51.6]} 9... Nbd7 {[%clk 0:02:20.4]} 10.
f4 {[%clk 0:02:50]} 10... Qa5 {[%clk 0:02:15.8]} 11. Qc2 {[%clk 0:02:42.3]}
11... e6 {[%clk 0:01:41.3]} 12. dxe6 {[%clk 0:02:36.5]} 12... fxe6 {[%clk
0:01:41]} 13. O-O-O {[%clk 0:02:37]} 13... Qc7 {[%clk 0:01:25]} 14. Nf3 {[%clk
0:02:30.7]} 14... Nb6 {[%clk 0:01:14.6]} 15. Qd3 {[%clk 0:02:21.5]} 15... Rd8
{[%clk 0:01:06.4]} 16. e5 {[%clk 0:02:16.2]} 16... Ne8 {[%clk 0:01:00.7]} 17. c5
{[%clk 0:02:14.1]} 17... Nd5 {[%clk 0:00:47.7]} 18. cxd6 {[%clk 0:02:10.7]}
18... Qa5 {[%clk 0:00:37.9]} 19. Nxd5 {[%clk 0:02:02.6]} 19... cxd5 {[%clk
0:00:34.8]} 20. Kb1 {[%clk 0:02:01.8]} 20... Bd7 {[%clk 0:00:34.8]} 21. Qd2
{[%clk 0:01:58]} 21... Qb5 {[%clk 0:00:30.5]} 22. Nd4 {[%clk 0:01:53.9]} 22...
Qa6 {[%clk 0:00:28.9]} 23. Bf1 {[%clk 0:01:43.3]} 23... b5 {[%clk 0:00:23.8]}
24. Nb3 {[%clk 0:01:35.1]} 24... Rac8 {[%clk 0:00:19.8]} 25. Nc5 {[%clk
0:01:32.7]} 25... Qc6 {[%clk 0:00:16]} 26. Bd4 {[%clk 0:01:20.2]} 26... Nxd6
{[%clk 0:00:15]} 27. Bg2 {[%clk 0:00:34.3]} 27... Nc4 {[%clk 0:00:13.1]} 28. h4
{[%clk 0:00:33.1]} 28... Nxd2+ {[%clk 0:00:12.7]} 0-1

[Event "Early-Titled-Tuesday-Blitz-October-17-2023"]
[Site "Chess.com"]
[Date "2023.10.17"]
[Round "5"]
[White "Lion-Al-Messi"]
[Black "gmcorrales"]
[Result "1-0"]
[WhiteElo "2670"]
[BlackElo "2871"]
[TimeControl "180+1"]
[EndTime "8:56:57 PDT"]
[Termination "Lion-Al-Messi won by resignation"]

1. e4 {[%clk 0:03:00.9]} 1... c5 {[%clk 0:02:51.9]} 2. Nf3 {[%clk 0:03:01.2]}
2... d6 {[%clk 0:02:51.6]} 3. d4 {[%clk 0:03:01.5]} 3... cxd4 {[%clk 0:02:52.5]}
4. Nxd4 {[%clk 0:03:02]} 4... Nf6 {[%clk 0:02:52.6]} 5. Nc3 {[%clk 0:03:02.2]}
5... Nc6 {[%clk 0:02:53.2]} 6. Bg5 {[%clk 0:03:01]} 6... e6 {[%clk 0:02:52.9]}
7. Qd2 {[%clk 0:02:59.9]} 7... a6 {[%clk 0:02:53.3]} 8. O-O-O {[%clk 0:02:59.6]}
8... Bd7 {[%clk 0:02:53.9]} 9. f4 {[%clk 0:02:59]} 9... b5 {[%clk 0:02:39.2]}
10. Bxf6 {[%clk 0:02:51.9]} 10... gxf6 {[%clk 0:02:32.5]} 11. Kb1 {[%clk
0:02:41.6]} 11... Qb6 {[%clk 0:02:30.6]} 12. Nxc6 {[%clk 0:02:41.1]} 12... Bxc6
{[%clk 0:02:31.5]} 13. f5 {[%clk 0:02:41.2]} 13... b4 {[%clk 0:02:30.2]} 14. Ne2
{[%clk 0:02:40.9]} 14... e5 {[%clk 0:02:28.8]} 15. Qd3 {[%clk 0:02:26.9]} 15...
h5 {[%clk 0:02:18.7]} 16. Nc1 {[%clk 0:02:25.2]} 16... a5 {[%clk 0:02:09.7]} 17.
Be2 {[%clk 0:02:19.7]} 17... a4 {[%clk 0:02:02.2]} 18. Rhe1 {[%clk 0:02:13.3]}
18... Qc5 {[%clk 0:02:02.1]} 19. Bf1 {[%clk 0:02:07.1]} 19... Ke7 {[%clk
0:02:01.3]} 20. Qc4 {[%clk 0:01:58.8]} 20... Qb6 {[%clk 0:01:32]} 21. Nd3 {[%clk
0:01:45.4]} 21... Rb8 {[%clk 0:01:31.6]} 22. b3 {[%clk 0:01:34.9]} 22... Bh6
{[%clk 0:01:17.1]} 23. g3 {[%clk 0:01:22.8]} 23... Rhc8 {[%clk 0:01:16]} 24. Nc1
{[%clk 0:01:08.8]} 24... a3 {[%clk 0:00:39.1]} 25. Qd3 {[%clk 0:01:07.4]} 25...
Qc5 {[%clk 0:00:32.8]} 26. Qc4 {[%clk 0:01:07.7]} 26... Qf2 {[%clk 0:00:25.1]}
27. Qe2 {[%clk 0:01:06.4]} 27... Qg1 {[%clk 0:00:18.6]} 28. Qxh5 {[%clk
0:00:56.8]} 28... Bxc1 {[%clk 0:00:16.5]} 29. Kxc1 {[%clk 0:00:53.2]} 29... Rc7
{[%clk 0:00:12.3]} 30. Bc4 {[%clk 0:00:48.5]} 30... Be8 {[%clk 0:00:12.4]} 31.
Rxg1 {[%clk 0:00:47.6]} 31... d5 {[%clk 0:00:04.2]} 32. exd5 {[%clk 0:00:46.4]}
32... Kd6 {[%clk 0:00:03.9]} 33. Qh6 {[%clk 0:00:46.4]} 1-0

[Event "Early-Titled-Tuesday-Blitz-October-17-2023"]
[Site "Chess.com"]
[Date "2023.10.17"]
[Round "5"]
[White "ExcitingTrap"]
[Black "Wizard_97"]
[Result "0-1"]
[WhiteElo "2433"]
[BlackElo "2582"]
[TimeControl "180+1"]
[EndTime "8:56:57 PDT"]
[Termination "Wizard_97 won by resignation"]

1. e4 {[%clk 0:03:00.9]} 1... c5 {[%clk 0:02:58.8]} 2. Nf3 {[%clk 0:03:01]} 2...
d6 {[%clk 0:02:58.5]} 3. d4 {[%clk 0:03:01.6]} 3... cxd4 {[%clk 0:02:59.3]} 4.
Nxd4 {[%clk 0:03:02.5]} 4... Nf6 {[%clk 0:02:59.5]} 5. Nc3 {[%clk 0:03:02.7]}
5... g6 {[%clk 0:02:59.7]} 6. Be3 {[%clk 0:03:02.3]} 6... Bg7 {[%clk 0:02:59]}
7. f3 {[%clk 0:03:02.8]} 7... O-O {[%clk 0:02:57]} 8. Qd2 {[%clk 0:03:02.1]}
8... Nc6 {[%clk 0:02:54.3]} 9. Bc4 {[%clk 0:03:02]} 9... Bd7 {[%clk 0:02:47.3]}
10. O-O-O {[%clk 0:03:01.8]} 10... Ne5 {[%clk 0:02:46.4]} 11. Bb3 {[%clk
0:02:54.3]} 11... Rc8 {[%clk 0:02:47.3]} 12. g4 {[%clk 0:02:40.5]} 12... b5
{[%clk 0:02:45.9]} 13. Ncxb5 {[%clk 0:02:02.1]} 13... Bxb5 {[%clk 0:02:42.8]}
14. Nxb5 {[%clk 0:02:03]} 14... Nxf3 {[%clk 0:02:41.5]} 15. Qe2 {[%clk
0:02:01.1]} 15... Ne5 {[%clk 0:02:37.4]} 16. h3 {[%clk 0:01:36.7]} 16... Nxe4
{[%clk 0:02:31.7]} 17. Bf4 {[%clk 0:01:29.4]} 17... Nc5 {[%clk 0:02:14.1]} 18.
Kb1 {[%clk 0:01:13.9]} 18... Qa5 {[%clk 0:02:12.2]} 19. Nc3 {[%clk 0:01:06.2]}
19... Nc6 {[%clk 0:02:10.5]} 20. Nd5 {[%clk 0:01:02.1]} 20... Nxb3 {[%clk
0:01:52.7]} 21. cxb3 {[%clk 0:01:03]} 21... e6 {[%clk 0:01:52]} 22. Nc3 {[%clk
0:00:53.1]} 22... d5 {[%clk 0:01:48.2]} 23. Na4 {[%clk 0:00:47.3]} 23... Nd4
{[%clk 0:01:34.6]} 24. Qe3 {[%clk 0:00:39.6]} 24... Nb5 {[%clk 0:01:22.3]} 25.
h4 {[%clk 0:00:26.9]} 25... Qb4 {[%clk 0:01:12]} 26. Ka1 {[%clk 0:00:16.6]}
26... Na3 {[%clk 0:01:10]} 27. Rc1 {[%clk 0:00:12.3]} 27... Nc2+ {[%clk
0:01:09.9]} 28. Rxc2 {[%clk 0:00:12.4]} 28... Rxc2 {[%clk 0:01:10.8]} 29. Be5
{[%clk 0:00:08.1]} 29... Bxe5 {[%clk 0:01:09.1]} 30. Qxe5 {[%clk 0:00:09]} 30...
Rfc8 {[%clk 0:01:09.5]} 31. Qe3 {[%clk 0:00:07.4]} 31... Qxg4 {[%clk 0:01:08.3]}
32. h5 {[%clk 0:00:05.6]} 32... Qe4 {[%clk 0:01:05.8]} 33. Qxe4 {[%clk
0:00:02.2]} 33... dxe4 {[%clk 0:01:06.7]} 34. hxg6 {[%clk 0:00:02.3]} 34... Rc1+
{[%clk 0:01:06.7]} 0-1

[Event "Early-Titled-Tuesday-Blitz-October-17-2023"]
[Site "Chess.com"]
[Date "2023.10.17"]
[Round "5"]
[White "KNVB"]
[Black "IamSchrodingersCat"]
[Result "0-1"]
[WhiteElo "2670"]
[BlackElo "2546"]
[TimeControl "180+1"]
[EndTime "8:56:59 PDT"]
[Termination "IamSchrodingersCat won on time"]

1. d4 {[%clk 0:02:48]} 1... Nf6 {[%clk 0:02:58.4]} 2. Nc3 {[%clk 0:02:44.1]}
2... g6 {[%clk 0:02:56.5]} 3. e4 {[%clk 0:02:41.9]} 3... d6 {[%clk 0:02:56.9]}
4. Nf3 {[%clk 0:02:37.2]} 4... Bg7 {[%clk 0:02:55.5]} 5. Be2 {[%clk 0:02:37.1]}
5... O-O {[%clk 0:02:54.9]} 6. O-O {[%clk 0:02:37.6]} 6... e5 {[%clk 0:02:31.2]}
7. dxe5 {[%clk 0:01:15]} 7... dxe5 {[%clk 0:02:32.1]} 8. Qxd8 {[%clk 0:00:54.7]}
8... Rxd8 {[%clk 0:02:33]} 9. Bg5 {[%clk 0:00:54.2]} 9... Re8 {[%clk 0:02:24.8]}
10. Rad1 {[%clk 0:00:29.3]} 10... c6 {[%clk 0:02:16.4]} 11. Nxe5 {[%clk
0:00:17.9]} 11... Nxe4 {[%clk 0:01:09.1]} 12. Nxe4 {[%clk 0:00:14.1]} 12... Bxe5
{[%clk 0:01:09.7]} 13. Bc4 {[%clk 0:00:02.4]} 13... Bf5 {[%clk 0:00:58.5]} 14.
Nf6+ {[%clk 0:00:02.2]} 14... Bxf6 {[%clk 0:00:58.4]} 15. Bxf6 {[%clk
0:00:03.1]} 15... Bxc2 {[%clk 0:00:53]} 16. Rd2 {[%clk 0:00:03.4]} 16... Bf5
{[%clk 0:00:51.1]} 17. h3 {[%clk 0:00:02.2]} 17... b5 {[%clk 0:00:39.9]} 18. Bb3
{[%clk 0:00:02.2]} 18... Na6 {[%clk 0:00:40.6]} 19. Rc1 {[%clk 0:00:02.2]} 19...
Rac8 {[%clk 0:00:33.7]} 20. g4 {[%clk 0:00:02.1]} 20... Be6 {[%clk 0:00:32.9]}
21. g5 {[%clk 0:00:01.2]} 21... Bxh3 {[%clk 0:00:24.3]} 22. Rd6 {[%clk
0:00:01.1]} 22... Nb8 {[%clk 0:00:20.2]} 0-1

[Event "Early-Titled-Tuesday-Blitz-October-17-2023"]
[Site "Chess.com"]
[Date "2023.10.17"]
[Round "5"]
[White "ChesscularGodofchess"]
[Black "Journey_to_GrandMaster_YT"]
[Result "0-1"]
[WhiteElo "2200"]
[BlackElo "2617"]
[TimeControl "180+1"]
[EndTime "8:57:01 PDT"]
[Termination "Journey_to_GrandMaster_YT won by checkmate"]

1. d4 {[%clk 0:02:58.1]} 1... c5 {[%clk 0:02:54.3]} 2. d5 {[%clk 0:02:56.1]}
2... d6 {[%clk 0:02:51.8]} 3. e4 {[%clk 0:02:55.7]} 3... g6 {[%clk 0:02:51.5]}
4. Nc3 {[%clk 0:02:55.3]} 4... Bg7 {[%clk 0:02:52.1]} 5. Be3 {[%clk 0:02:49.2]}
5... Nf6 {[%clk 0:02:52.4]} 6. f3 {[%clk 0:02:47]} 6... O-O {[%clk 0:02:52]} 7.
Qd2 {[%clk 0:02:47.1]} 7... Qa5 {[%clk 0:02:49]} 8. O-O-O {[%clk 0:02:43.3]}
8... a6 {[%clk 0:02:46.3]} 9. Kb1 {[%clk 0:02:40.7]} 9... b5 {[%clk 0:02:46.2]}
10. Bh6 {[%clk 0:02:40.5]} 10... b4 {[%clk 0:02:45.3]} 11. Nce2 {[%clk
0:02:40.4]} 11... Nbd7 {[%clk 0:02:39.1]} 12. h4 {[%clk 0:02:39.7]} 12... Ne5
{[%clk 0:02:34.1]} 13. Nc1 {[%clk 0:02:38.2]} 13... c4 {[%clk 0:02:30.7]} 14. h5
{[%clk 0:02:29.7]} 14... c3 {[%clk 0:02:25.5]} 15. Qg5 {[%clk 0:02:24.9]} 15...
cxb2 {[%clk 0:02:24.5]} 16. Nb3 {[%clk 0:02:20.1]} 16... Qb6 {[%clk 0:02:18.4]}
17. hxg6 {[%clk 0:02:19.2]} 17... fxg6 {[%clk 0:02:14.5]} 18. Bxg7 {[%clk
0:02:07]} 18... Kxg7 {[%clk 0:02:13.7]} 19. Qh6+ {[%clk 0:02:07.4]} 19... Kg8
{[%clk 0:02:13.3]} 20. g4 {[%clk 0:02:05.9]} 20... Bd7 {[%clk 0:01:57.7]} 21.
Be2 {[%clk 0:01:53.6]} 21... Bb5 {[%clk 0:01:46.3]} 22. Nd4 {[%clk 0:01:49.3]}
22... Bxe2 {[%clk 0:01:40.5]} 23. Ngxe2 {[%clk 0:01:50.2]} 23... Rf7 {[%clk
0:01:35.7]} 24. Nf4 {[%clk 0:01:18.7]} 24... a5 {[%clk 0:01:24.6]} 25. Nfe6
{[%clk 0:01:18.7]} 25... a4 {[%clk 0:01:15.6]} 26. Ng5 {[%clk 0:01:18.6]} 26...
b3 {[%clk 0:01:09.3]} 27. Nde6 {[%clk 0:00:25.5]} 27... bxc2+ {[%clk 0:01:03.7]}
28. Kxc2 {[%clk 0:00:25.9]} 28... Rc8+ {[%clk 0:01:01.4]} 29. Kb1 {[%clk
0:00:24.5]} 29... Nc4 {[%clk 0:00:40.7]} 30. Rd3 {[%clk 0:00:13.4]} 30... Qf2
{[%clk 0:00:35.9]} 31. Nxf7 {[%clk 0:00:10.6]} 31... Na3+ {[%clk 0:00:33.9]} 32.
Rxa3 {[%clk 0:00:07.9]} 32... Qc2# {[%clk 0:00:34.4]} 0-1